bitfinex/quotes_ETHUSD_20250323
["timestamp","ask_amount","ask_price","bid_price","bid_amount"]
[1742695857862,5.01019,1996.0,1995.8,26.487]
[1742695859261,10.02043,1996.0,1995.8,26.487]
[1742695859460,5.01019,1996.0,1995.8,26.487]
[1742695860261,10.0204,1996.0,1995.8,26.487]
[1742695860829,5.01019,1996.0,1995.8,26.487]
[1742695861365,5.00977,1996.1,1995.8,26.487]
[1742695861563,10.0193,1996.2,1995.8,35.74491883]
[1742695861870,5.0098,1996.1,1995.8,35.74491883]
[1742695862559,5.0098,1996.1,1995.8,30.73454883]
[1742695866571,10.01978,1996.1,1995.8,30.73454883]
[1742695866883,5.01013,1996.0,1995.8,26.487]
[1742695867444,5.01013,1996.0,1995.9,26.486]
[1742695871145,8.36686512,1996.0,1995.9,26.486]
[1742695881988,5.01013,1996.0,1995.9,26.486]
[1742695882172,7.55876512,1996.0,1995.9,26.486]
[1742695885202,5.01013,1996.0,1995.9,26.486]
[1742695886763,5.00986,1996.1,1995.9,26.486]
[1742695887500,5.00966,1996.2,1995.9,26.486]
[1742695887882,5.00987,1996.1,1995.9,26.486]
[1742695888200,5.00966,1996.2,1995.9,29.03463512]
[1742695889094,5.00911,1996.4,1996.1,2.54863512]
[1742695889294,5.00911,1996.4,1996.0,7.55854512]
[1742695889896,5.00911,1996.4,1996.0,7.55847512]
[1742695890397,5.00884,1996.5,1996.1,7.55839512]
[1742695890971,5.00884,1996.5,1996.1,12.56800512]
[1742695891175,5.00884,1996.5,1996.2,2.54863512]
[1742695891373,10.01739,1996.6,1996.3,2.54863512]
[1742695891573,5.00864,1996.6,1996.3,2.54863512]
[1742695891980,5.82997,1997.0,1996.5,2.54863512]
[1742695892203,5.00793,1996.9,1996.6,2.54863512]
[1742695892373,5.00793,1996.9,1996.7,26.488]
[1742695892776,10.01588,1996.9,1996.7,26.488]
[1742695893597,5.00801,1996.8,1996.7,26.488]
[1742695894407,5.00575,1997.7,1996.9,5.00767]
[1742695894578,5.00665,1997.4,1997.0,2.54863512]
[1742695894779,5.00665,1997.4,1997.0,7.55603512]
[1742695895293,5.00665,1997.4,1997.0,5.0074]
[1742695895608,5.00665,1997.4,1997.0,10.01473]
[1742695895819,5.00665,1997.4,1997.0,5.00733]
[1742695896112,5.00665,1997.4,1997.0,10.01474]
[1742695897404,5.00665,1997.4,1997.1,5.00723]
[1742695899208,5.00665,1997.4,1997.0,5.00737]
[1742695899511,5.00665,1997.4,1997.0,10.01473]
[1742695902106,5.00665,1997.4,1997.1,5.0072]
[1742695902309,5.0063,1997.5,1997.1,5.0072]
[1742695902509,4.85045162,1997.7,1996.9,4.6130912]
[1742695902713,5.00611,1997.6,1997.2,5.00687]
[1742695902911,5.00611,1997.6,1997.3,26.474]
[1742695903412,5.00576,1997.7,1997.3,31.48066]
[1742695904204,5.00609,1997.6,1997.3,26.474]
[1742695907218,10.01229,1997.6,1997.3,26.474]
[1742695907418,10.01228,1997.6,1997.3,26.474]
[1742695908520,5.00626,1997.5,1997.3,26.474]
[1742695911631,5.0065,1997.4,1997.3,26.474]
[1742695919327,5.00626,1997.5,1997.3,26.474]
[1742695920600,5.0065,1997.4,1997.3,26.474]
[1742695920914,5.00633,1997.5,1997.3,26.474]
[1742695921230,10.01282,1997.5,1997.3,26.474]
[1742695921731,5.0065,1997.4,1997.3,26.474]
[1742695925151,11.88768106,1997.4,1997.3,26.474]
[1742695925322,14.88768106,1997.4,1997.3,26.474]
[1742695926621,12.34208203,1997.4,1997.3,26.474]
[1742695927211,14.03979098,1997.4,1997.3,26.474]
[1742695927438,5.7952,1997.4,1997.3,26.474]
[1742695932946,5.0065,1997.4,1997.3,26.474]
[1742695934240,4.99680798,1997.8,1997.3,31.48074]
[1742695934407,5.00585,1997.7,1997.3,31.48073]
[1742695935035,10.01181,1997.7,1997.3,31.48073]
[1742695935448,5.00602,1997.6,1997.3,26.474]
[1742695935650,5.00628,1997.5,1997.3,26.474]
[1742695936848,5.00602,1997.6,1997.3,26.474]
[1742695938248,9.24908798,1997.7,1997.3,31.48072]
[1742695938623,14.25506798,1997.7,1997.3,31.48072]
[1742695939151,5.75902,1997.8,1997.3,31.48059]
[1742695939452,5.00577,1997.7,1997.3,36.48722]
[1742695940816,5.00577,1997.7,1997.3,31.48059]
[1742695941222,5.00604,1997.6,1997.3,31.48059]
[1742695941719,5.00577,1997.7,1997.3,31.48058]
[1742695941942,5.00577,1997.7,1997.3,36.4872]
[1742695942115,5.00577,1997.7,1997.3,31.48058]
[1742695946054,5.00577,1997.7,1997.3,36.48724]
[1742695946552,5.00577,1997.7,1997.3,31.48058]
[1742695947055,4.24330798,1997.9,1997.5,5.00612]
[1742695947253,5.00529,1997.9,1997.5,5.00612]
[1742695947459,5.0055,1997.8,1997.3,26.474]
[1742695947643,5.80632,1998.2,1997.5,5.00623]
[1742695947959,5.80632,1998.2,1997.8,5.00543]
[1742695948121,1.5053878,1998.2,1997.8,0.05005074]
[1742695948326,9.24761798,1998.3,1997.9,5.00512]
[1742695948630,5.00431,1998.3,1997.9,5.00512]
[1742695950361,9.24816798,1998.1,1997.6,5.00597]
[1742695950524,9.24816798,1998.1,1997.4,0.55]
[1742695950525,5.00526,1997.9,1997.4,5.0063]
[1742695950869,5.00526,1997.9,1997.5,5.00616]
[1742695951457,10.01073,1997.9,1997.5,5.00616]
[1742695951676,5.00526,1997.9,1997.5,5.00616]
[1742695952329,5.00553,1997.8,1997.5,5.00616]
[1742695952960,5.0053,1997.9,1997.5,5.00616]
[1742695953857,5.0053,1997.9,1997.6,26.463]
[1742695954367,5.00555,1997.8,1997.6,26.463]
[1742695954836,5.0053,1997.9,1997.6,26.463]
[1742695955370,10.01075,1997.9,1997.6,26.463]
[1742695957863,5.00552,1997.8,1997.6,26.463]
[1742695959771,5.80732,1997.8,1997.6,26.463]
[1742695960069,5.00575,1997.7,1997.6,26.463]
[1742695968788,6.5113878,1997.7,1997.6,26.463]
[1742695973760,7.2924878,1997.7,1997.6,26.463]
[1742695977267,10.2924878,1997.7,1997.6,26.463]
[1742695977483,14.53579578,1997.7,1997.6,26.463]
[1742695978279,19.16344825,1997.7,1997.6,26.463]
[1742695978477,5.0078,1996.9,1996.5,5.00865]
[1742695978685,5.0078,1996.9,1996.6,26.466]
[1742695981301,5.0078,1996.9,1996.6,31.47446]
[1742695981482,0.7957,1997.1,1996.8,5.00788]
[1742695981664,5.00745,1997.1,1996.7,5.00806]
[1742695981868,10.01489,1997.1,1996.7,5.00806]
[1742695982270,5.80252,1997.3,1996.8,5.0078]
[1742695982482,5.00717,1997.2,1996.8,5.00791]
[1742695982808,5.00717,1997.2,1996.9,0.05007242]
[1742695983116,5.00717,1997.2,1996.8,10.06584245]
[1742695984173,5.00717,1997.2,1996.8,5.00786]
[1742695984512,10.01437,1997.2,1996.8,5.00786]
[1742695984711,5.00717,1997.2,1996.8,5.00786]
[1742695985402,5.00717,1997.2,1996.8,10.01573]
[1742695986209,5.00665,1997.4,1997.0,5.00747]
[1742695987311,5.00678,1997.3,1997.0,5.00747]
[1742695987814,5.00678,1997.3,1997.1,26.47]
[1742695996494,10.01378,1997.3,1997.1,26.47]
[1742695997836,5.00678,1997.3,1997.1,26.47]
[1742696006433,10.01376,1997.3,1997.1,26.47]
[1742696006629,5.7987,1997.2,1997.1,26.47]
[1742696011233,8.34489251,1997.2,1997.1,26.47]
[1742696013003,7.55319251,1997.2,1997.1,26.47]
[1742696013830,5.007,1997.2,1997.1,26.47]
[1742696015237,7.55319251,1997.2,1997.1,26.47]
[1742696022719,7.55297251,1997.3,1997.1,26.47]
[1742696023018,12.55989251,1997.3,1997.1,26.47]
[1742696023814,5.007,1997.2,1997.1,26.47]
[1742696028554,7.55319251,1997.2,1997.1,26.47]
[1742696034843,9.59388976,1997.2,1997.1,26.47]
[1742696036157,12.59388976,1997.2,1997.1,26.47]
[1742696036357,15.14008227,1997.2,1997.1,26.47]
[1742696036760,5.00881,1996.5,1996.2,10.25]
[1742696037075,7.55500251,1996.5,1996.3,26.471]
[1742696037445,12.56397251,1996.5,1996.3,26.471]
[1742696038495,7.55520251,1996.4,1996.3,26.471]
[1742696038776,5.00901,1996.4,1996.3,26.471]
[1742696039256,7.55500251,1996.5,1996.3,26.471]
[1742696039257,5.00881,1996.5,1996.3,26.471]
[1742696042372,5.79308,1996.7,1996.3,26.471]
[1742696042541,5.00862,1996.6,1996.3,26.471]
[1742696042990,10.01735,1996.6,1996.3,26.471]
[1742696047752,5.00862,1996.6,1996.3,26.471]
[1742696048185,5.00878,1996.5,1996.3,26.471]
[1742696054491,5.00878,1996.5,1996.4,26.478]
[1742696054699,11.04494259,1996.5,1996.4,26.478]
[1742696059194,9.34729517,1996.5,1996.4,26.478]
[1742696073119,12.34729517,1996.5,1996.4,26.478]
[1742696073688,5.0101,1996.0,1995.6,5.01093]
[1742696073896,5.0101,1996.0,1995.7,26.484]
[1742696075721,5.0101,1996.0,1995.7,31.49474]
[1742696077291,5.0101,1996.0,1995.7,26.484]
[1742696077292,7.55848317,1996.0,1995.7,26.484]
[1742696077621,2.54838317,1995.9,1995.7,26.484]
[1742696077824,7.55848317,1996.0,1995.7,26.484]
[1742696078002,2.54838317,1995.9,1995.7,26.484]
[1742696078203,7.55876317,1995.9,1995.7,26.484]
[1742696078817,7.55848317,1996.0,1995.7,26.484]
[1742696079126,7.55848317,1996.0,1995.7,31.49475]
[1742696079423,5.0101,1996.0,1995.7,31.49475]
[1742696079603,7.55848317,1996.0,1995.7,26.484]
[1742696079805,12.56868317,1996.0,1995.7,26.484]
[1742696080000,7.55872317,1995.9,1995.7,26.484]
[1742696080406,8.38707317,1996.0,1995.7,26.484]
[1742696080615,7.55847317,1996.0,1995.7,26.484]
[1742696080811,2.54838317,1996.0,1995.7,31.49471]
[1742696081612,7.55844317,1996.0,1995.7,31.49471]
[1742696083745,2.54838317,1996.0,1995.8,5.01039]
[1742696083911,2.54838317,1996.1,1995.8,5.06062131]
[1742696084114,2.54838317,1996.1,1995.8,5.01052]
[1742696084706,12.56772317,1996.2,1995.8,5.01052]
[1742696084919,2.54838317,1996.1,1995.8,5.01052]
[1742696085416,7.55819317,1996.1,1995.8,5.01052]
[1742696085637,2.54838317,1996.1,1995.8,5.01038]
[1742696086126,2.54838317,1996.1,1995.8,5.01035]
[1742696086633,7.55802317,1996.2,1995.8,5.01035]
[1742696087236,12.56771317,1996.2,1995.8,5.01035]
[1742696090104,5.00981,1996.1,1995.8,5.01035]
[1742696090305,5.00981,1996.1,1995.7,31.49469]
[1742696090938,7.55819317,1996.1,1995.8,26.486]
[1742696091734,12.56816317,1996.1,1995.8,26.486]
[1742696091932,5.01004,1996.0,1995.8,26.486]
[1742696093033,7.55842317,1996.0,1995.8,26.486]
[1742696093240,5.01027,1995.9,1995.8,26.486]
[1742696093739,7.55865317,1995.9,1995.8,26.486]
[1742696096336,8.89701249,1995.9,1995.8,26.486]
[1742696098107,5.01136,1995.5,1995.3,26.487]
[1742696098444,7.55974317,1995.5,1995.3,26.487]
[1742696098906,5.01136,1995.5,1995.3,26.487]
[1742696099539,5.01152,1995.4,1995.3,26.487]
[1742696100332,7.55923317,1995.7,1995.3,26.487]
[1742696100531,12.57076317,1995.6,1995.3,26.487]
[1742696101062,5.01128,1995.5,1995.3,26.487]
[1742696101248,7.55947317,1995.6,1995.3,26.487]
[1742696101446,12.57073317,1995.6,1995.3,26.487]
[1742696102545,5.01109,1995.6,1995.3,26.487]
[1742696102715,5.0108,1995.7,1995.4,0.05011114]
[1742696102915,5.0108,1995.7,1995.3,34.04693317]
[1742696102916,7.55918317,1995.7,1995.3,31.49871]
[1742696103813,7.55918317,1995.7,1995.3,36.51033]
[1742696104017,5.0108,1995.7,1995.3,31.49862]
[1742696104655,10.02177,1995.7,1995.3,31.49862]
[1742696105061,5.0108,1995.7,1995.3,31.49862]
[1742696106241,5.01105,1995.6,1995.3,31.49862]
[1742696106441,5.0108,1995.7,1995.3,36.5102]
[1742696106648,5.0108,1995.7,1995.3,36.51018]
[1742696106951,5.0108,1995.7,1995.3,31.49858]
[1742696107560,5.0108,1995.7,1995.4,5.01152]
[1742696108657,7.55898317,1995.8,1995.4,5.01152]
[1742696108963,5.0106,1995.8,1995.4,5.0615091]
[1742696110063,5.0106,1995.8,1995.4,7.60989227]
[1742696110362,5.0106,1995.8,1995.4,5.0615091]
[1742696110562,10.0213,1995.8,1995.4,5.0615091]
[1742696110931,10.02133,1995.8,1995.4,5.0615091]
[1742696111433,5.01079,1995.7,1995.4,5.0615091]
[1742696111633,5.01079,1995.7,1995.4,5.0114]
[1742696114567,5.0106,1995.8,1995.4,5.0114]
[1742696114864,10.02131,1995.8,1995.4,7.55978317]
[1742696115066,5.01078,1995.7,1995.4,7.55978317]
[1742696115767,5.0106,1995.8,1995.4,7.55978317]
[1742696116080,5.01078,1995.7,1995.5,26.49]
[1742696116667,5.83604,1996.0,1995.5,29.03838317]
[1742696116856,5.01004,1996.0,1995.6,7.55923317]
[1742696117169,5.00978,1996.1,1995.7,7.55912317]
[1742696117364,5.00962,1996.2,1995.8,5.01042]
[1742696117538,10.01936,1996.2,1995.8,7.55880317]
[1742696117738,5.00987,1996.1,1995.7,7.55901317]
[1742696117947,5.00987,1996.1,1995.7,12.56963317]
[1742696118642,5.00963,1996.2,1995.9,5.01017]
[1742696119834,5.81834,1996.3,1995.9,7.55854317]
[1742696120340,5.81834,1996.3,1995.9,10.02026]
[1742696120769,5.81834,1996.3,1995.9,12.56864317]
[1742696120965,5.81834,1996.3,1995.9,10.02026]
[1742696121173,5.81834,1996.3,1995.9,5.0101]
[1742696121773,10.8278,1996.3,1995.9,5.0101]
[1742696122572,5.81834,1996.3,1995.9,5.0101]
[1742696126342,10.82779,1996.3,1995.9,5.0101]
[1742696127380,5.81834,1996.3,1995.9,5.0101]
[1742696129486,10.82779,1996.3,1995.9,5.0101]
[1742696130484,10.82779,1996.3,1996.0,26.486]
[1742696130686,5.81834,1996.3,1996.0,26.486]
[1742696131786,10.82781,1996.3,1996.0,26.486]
[1742696133885,10.01881,1996.3,1996.0,26.486]
[1742696134790,5.00934,1996.3,1996.0,26.486]
[1742696139999,7.55807317,1996.2,1996.0,26.486]
[1742696140314,8.38817317,1996.2,1996.1,26.485]
[1742696141308,5.83979,1996.2,1996.1,26.485]
[1742696142825,5.00969,1996.2,1996.1,26.485]
[1742696160466,7.55773317,1996.3,1996.1,26.485]
[1742696162477,7.55773317,1996.3,1996.2,26.484]
[1742696162630,5.77352,1996.4,1996.2,26.484]
[1742696163735,13.33108317,1996.4,1996.2,26.484]
[1742696163934,8.32190317,1996.4,1996.2,26.484]
[1742696164370,13.33104317,1996.4,1996.2,26.484]
[1742696164679,8.32190317,1996.4,1996.2,26.484]
[1742696167574,13.33114317,1996.4,1996.2,26.484]
[1742696168075,7.55764317,1996.3,1996.2,26.484]
[1742696169771,5.00926,1996.3,1996.2,26.484]
[1742696175845,8.32193317,1996.4,1996.2,26.484]
[1742696178045,13.33117317,1996.4,1996.2,26.484]
[1742696178947,2.54838317,1996.3,1996.2,26.484]
[1742696179333,13.33117317,1996.4,1996.2,26.484]
[1742696183873,2.54838317,1996.3,1996.2,26.484]
[1742696184233,7.55764317,1996.3,1996.2,26.484]
[1742696184756,5.00926,1996.3,1996.2,26.484]
[1742696193981,5.00877,1996.5,1996.2,26.484]
[1742696194186,8.00848,1996.7,1996.2,26.484]
[1742696194187,7.55686317,1996.7,1996.2,26.484]
[1742696194345,5.00863,1996.6,1996.2,31.49335]
[1742696194680,7.55701317,1996.6,1996.2,36.50277]
[1742696194844,7.55669317,1996.7,1996.3,5.00916]
[1742696195552,5.00831,1996.7,1996.3,5.00916]
[1742696195735,7.55669317,1996.7,1996.3,5.00915]
[1742696197676,2.54838317,1996.7,1996.3,10.01822]
[1742696197872,7.55502317,1997.4,1996.5,2.54838317]
[1742696197873,5.77348,1997.0,1996.5,2.54838317]
[1742696198059,5.77294,1997.2,1996.6,2.59846182]
[1742696198259,2.54838317,1997.1,1996.7,5.00813]
[1742696198660,2.54838317,1997.1,1996.7,10.01628]
[1742696198887,2.54838317,1997.1,1996.8,5.00796]
[1742696199200,7.55549317,1997.2,1996.8,5.00796]
[1742696199584,2.54838317,1997.2,1996.9,5.00776]
[1742696199903,2.54838317,1997.3,1997.0,26.48]
[1742696200877,8.32080317,1997.4,1997.0,26.48]
[1742696201383,2.54838317,1997.4,1997.0,36.49496]
[1742696201570,2.54838317,1997.6,1997.1,2.54838317]
[1742696201773,7.55452317,1997.6,1997.2,5.00676]
[1742696202288,5.00614,1997.6,1997.2,5.00676]
[1742696202506,5.00581,1997.7,1997.3,7.55504317]
[1742696202696,2.54838317,1997.5,1997.1,5.00706]
[1742696203181,2.54838317,1997.5,1997.1,10.01421]
[1742696203383,12.56058317,1997.6,1997.1,7.55544317]
[1742696203581,12.56053317,1997.6,1997.1,7.55544317]
[1742696203781,12.56052317,1997.6,1997.1,12.56256317]
[1742696203990,7.55441317,1997.6,1997.1,12.56256317]
[1742696204303,7.55441317,1997.6,1997.2,5.00698]
[1742696204509,12.56055317,1997.6,1997.1,7.55544317]
[1742696204803,7.55441317,1997.6,1997.1,12.56259317]
[1742696204973,12.56055317,1997.6,1997.1,12.56259317]
[1742696205400,12.56055317,1997.6,1997.1,7.55544317]
[1742696205702,12.56055317,1997.6,1997.1,12.56259317]
[1742696205908,7.55441317,1997.6,1997.1,12.56259317]
[1742696206105,12.56058317,1997.6,1997.1,7.55544317]
[1742696206310,12.56058317,1997.6,1997.1,12.56257317]
[1742696206507,12.56058317,1997.6,1997.1,7.55544317]
[1742696206712,7.55441317,1997.6,1997.1,12.56257317]
[1742696207507,12.56055317,1997.6,1997.1,12.56257317]
[1742696207813,7.55441317,1997.6,1997.1,12.56257317]
[1742696208015,2.54838317,1997.6,1997.2,5.00678]
[1742696208330,7.55451317,1997.6,1997.2,5.00678]
[1742696208912,7.55451317,1997.6,1997.1,12.56255317]
[1742696209413,5.00613,1997.6,1997.1,12.56255317]
[1742696209581,5.00613,1997.6,1997.2,5.00699]
[1742696209908,10.01236,1997.6,1997.1,7.55544317]
[1742696210115,5.00628,1997.5,1997.1,7.55544317]
[1742696210915,7.55451317,1997.6,1997.1,12.56250317]
[1742696211097,7.55448317,1997.6,1997.2,31.47695]
[1742696211309,12.56063317,1997.6,1997.2,31.47695]
[1742696211511,7.55448317,1997.6,1997.2,31.47695]
[1742696212021,12.56061317,1997.6,1997.2,31.47695]
[1742696212824,12.56061317,1997.6,1997.2,26.47]
[1742696213425,5.00634,1997.5,1997.2,26.47]
[1742696216224,5.0061,1997.6,1997.2,31.47696]
[1742696216926,7.55448317,1997.6,1997.2,31.47696]
[1742696218431,2.54838317,1997.5,1997.2,31.47696]
[1742696218726,7.55448317,1997.6,1997.2,31.47696]
[1742696220698,7.55448317,1997.6,1997.3,26.467]
[1742696222322,2.54838317,1997.7,1997.3,26.467]
[1742696222523,2.54838317,1997.7,1997.3,31.47354]
[1742696222703,7.55414317,1997.7,1997.3,31.47354]
[1742696223104,2.54838317,1997.7,1997.4,5.00648]
[1742696223852,7.55354317,1998.0,1997.5,5.00608]
[1742696223853,7.55367317,1997.9,1997.5,5.00608]
[1742696225049,7.55444317,1997.6,1997.3,26.467]
[1742696225255,2.54838317,1997.5,1997.3,26.467]
[1742696225550,7.55471317,1997.5,1997.3,26.467]
[1742696225963,2.54838317,1997.5,1997.3,26.467]
[1742696226946,8.35274317,1997.6,1997.3,26.467]
[1742696227946,3.34668317,1997.6,1997.3,31.47372]
[1742696228152,8.35268317,1997.6,1997.3,26.467]
[1742696229122,2.54838317,1997.5,1997.3,26.467]
[1742696230246,2.54838317,1997.5,1997.4,26.465]
[1742696231756,7.55463317,1997.5,1997.4,26.465]
[1742696234758,8.37683317,1997.5,1997.4,26.465]
[1742696238873,10.92521634,1997.5,1997.4,26.465]
[1742696239058,12.26349966,1997.5,1997.4,26.465]
[1742696240537,9.71511649,1997.5,1997.4,26.465]
[1742696240750,12.26349966,1997.5,1997.4,26.465]
[1742696241979,8.37683317,1997.5,1997.4,26.465]
[1742696247640,5.82845,1997.5,1997.4,26.465]
[1742696247841,8.37683317,1997.5,1997.4,26.465]
[1742696252178,2.54838317,1997.5,1997.4,26.465]
[1742696252567,7.55463317,1997.5,1997.4,26.465]
[1742696272996,10.92731634,1997.5,1997.4,26.465]
[1742696273311,12.52064797,1997.5,1997.4,26.465]
[1742696273467,15.52064797,1997.5,1997.4,26.465]
[1742696274461,5.00805,1996.8,1996.4,10.01775]
[1742696274660,2.54838317,1996.7,1996.5,26.469]
[1742696274865,2.54838317,1996.6,1996.5,26.469]
[1742696275099,2.54838317,1996.7,1996.5,26.469]
[1742696276100,2.54838317,1996.6,1996.5,26.469]
[1742696276292,7.55689317,1996.6,1996.5,26.469]
[1742696277105,9.25580973,1996.6,1996.5,26.469]
[1742696278496,10.08010973,1996.6,1996.5,26.469]
[1742696279270,11.5889647,1996.6,1996.5,26.469]
[1742696280803,14.5889647,1996.6,1996.5,26.469]
[1742696283676,9.25580973,1996.6,1996.5,26.469]
[1742696284804,4.24729973,1996.6,1996.5,26.469]
[1742696286617,9.25580973,1996.6,1996.5,26.469]
[1742696287918,10.06970973,1996.6,1996.5,26.469]
[1742696288083,9.25580973,1996.6,1996.5,26.469]
[1742696290216,4.24729973,1996.6,1996.5,26.469]
[1742696290926,9.25580973,1996.6,1996.5,26.469]
[1742696293949,4.24729973,1996.6,1996.5,26.469]
[1742696300006,9.25580973,1996.6,1996.5,26.469]
[1742696300225,10.6822207,1996.6,1996.5,26.469]
[1742696303555,9.25580973,1996.6,1996.5,26.469]
[1742696312974,4.24729973,1996.6,1996.5,26.469]
[1742696313354,4.24729973,1996.8,1996.5,26.469]
[1742696314032,4.24729973,1996.8,1996.5,31.4777]
[1742696315369,9.25530973,1996.8,1996.5,26.469]
[1742696316042,4.24729973,1996.8,1996.5,31.47775]
[1742696318740,9.25530973,1996.8,1996.5,26.469]
[1742696318946,5.00842,1996.7,1996.5,26.469]
[1742696319153,4.24729973,1996.6,1996.5,26.469]
[1742696319341,9.25580973,1996.6,1996.5,26.469]
[1742696321177,9.25534973,1996.8,1996.5,26.469]
[1742696321471,4.24729973,1996.8,1996.5,31.47776]
[1742696322644,4.24729973,1996.8,1996.5,36.4864]
[1742696322844,4.24729973,1996.8,1996.5,31.47764]
[1742696323191,4.24729973,1996.8,1996.5,36.48629]
[1742696323482,4.24729973,1996.8,1996.5,31.47764]
[1742696332980,4.24729973,1997.0,1996.7,5.00818]
[1742696333567,9.25445973,1997.2,1996.8,5.008]
[1742696333861,9.25445973,1997.2,1996.8,10.01586]
[1742696333862,5.00716,1997.2,1996.8,10.01586]
[1742696334287,5.00716,1997.2,1996.8,5.00786]
[1742696335672,9.25445973,1997.2,1996.8,5.00786]
[1742696335987,10.07207973,1997.1,1996.7,5.00825]
[1742696336157,4.24729973,1997.0,1996.7,5.00825]
[1742696337304,4.24729973,1997.0,1996.7,5.00813]
[1742696340368,5.00716,1997.2,1996.8,5.00789]
[1742696340591,9.25445973,1997.2,1996.9,26.474]
[1742696340794,4.24729973,1997.2,1996.9,26.474]
[1742696340959,4.24729973,1997.2,1996.9,31.48174]
[1742696341609,4.24729973,1997.2,1996.9,26.474]
[1742696342114,4.24729973,1997.4,1997.0,5.0073]
[1742696342401,4.24729973,1997.4,1997.1,5.00721]
[1742696342969,4.24729973,1997.6,1997.3,5.00666]
[1742696343615,4.24729973,1997.6,1997.3,10.01329]
[1742696343915,4.24729973,1997.6,1997.3,10.01324]
[1742696344073,4.24729973,1997.6,1997.3,5.00661]
[1742696344277,4.24729973,1997.6,1997.3,5.0066]
[1742696344575,4.24729973,1997.6,1997.4,5.05652962]
[1742696344777,4.24729973,1997.6,1997.4,5.00647]
[1742696345917,4.24729973,1997.6,1997.3,10.01319]
[1742696346116,4.24729973,1997.6,1997.3,5.00659]
[1742696346319,9.25330973,1997.6,1997.2,5.00699]
[1742696346494,10.08430973,1997.6,1997.2,5.00699]
[1742696346896,5.07829973,1997.6,1997.2,10.01382]
[1742696347427,5.07829973,1997.6,1997.3,5.00673]
[1742696349594,4.24729973,1997.6,1997.4,5.00646]
[1742696349911,4.24729973,1997.7,1997.4,5.05651963]
[1742696351419,4.24729973,1997.7,1997.5,26.469]
[1742696352927,9.25307973,1997.7,1997.5,26.469]
[1742696358542,4.24729973,1997.7,1997.5,26.469]
[1742696360138,9.25309973,1997.7,1997.5,26.469]
[1742696360301,5.8014,1997.6,1997.5,26.469]
[1742696364065,10.04869973,1997.6,1997.5,26.469]
[1742696365245,17.29599946,1997.6,1997.5,26.469]
[1742696366016,5.00751,1997.0,1996.9,26.466]
[1742696366239,5.00751,1997.0,1996.4,5.00884]
[1742696366240,0.778,1996.9,1996.8,26.466]
[1742696366551,5.02529973,1996.9,1996.8,26.466]
[1742696367224,10.03321973,1996.9,1996.8,26.466]
[1742696368846,5.02529973,1996.9,1996.8,26.466]
[1742696369156,4.24729973,1996.9,1996.8,26.466]
[1742696373991,4.24729973,1997.1,1996.8,31.47385]
[1742696374189,4.24729973,1997.1,1996.8,26.466]
[1742696374890,4.24729973,1997.1,1996.8,31.4739]
[1742696375892,5.80796,1997.3,1996.9,5.00752]
[1742696375893,0.8012,1997.3,1996.9,5.00752]
[1742696376060,4.24729973,1997.4,1997.1,5.00716]
[1742696376892,4.24729973,1997.4,1997.1,5.05722802]
[1742696377288,9.25345973,1997.6,1997.1,5.05711802]
[1742696377450,9.25345973,1997.6,1997.2,5.05689348]
[1742696377789,14.25958973,1997.6,1997.1,5.00705]
[1742696377974,4.24729973,1997.4,1997.1,5.00705]
[1742696378795,5.04849973,1997.4,1997.0,5.00748]
[1742696379118,5.00682,1997.3,1996.9,5.00751]
[1742696379467,10.05516973,1997.4,1996.9,5.00751]
[1742696379666,10.05516973,1997.4,1997.0,5.00746]
[1742696380192,10.05516973,1997.4,1997.0,10.01484]
[1742696380713,10.05516973,1997.4,1997.0,5.00738]
[1742696382308,5.04849973,1997.4,1997.1,5.00725]
[1742696382608,5.04849973,1997.4,1997.2,26.47]
[1742696382609,4.24729973,1997.4,1997.2,26.47]
[1742696396922,4.24729973,1997.4,1997.3,26.469]
[1742696399645,5.00629,1997.5,1997.3,26.469]
[1742696399952,4.24729973,1997.7,1997.3,31.47575]
[1742696400244,5.55389,1998.5,1997.7,5.00575]
[1742696400245,0.7653,1998.0,1997.7,5.00575]
[1742696400451,4.24729973,1997.9,1997.7,5.00575]
[1742696400812,4.24729973,1997.9,1997.6,5.00595]
[1742696401134,4.24729973,1997.9,1997.6,10.0118]
[1742696401338,5.00449,1998.3,1997.5,5.00625]
[1742696401339,5.76982,1998.2,1997.5,5.00625]
[1742696401668,4.24729973,1998.1,1997.8,5.00538]
[1742696403022,4.24729973,1998.1,1997.8,5.00536]
[1742696403231,4.24729973,1998.1,1997.6,5.55586]
[1742696403430,4.24729973,1998.1,1997.9,5.00515]
[1742696404306,4.24729973,1998.2,1997.9,5.00515]
[1742696404505,5.76948,1998.4,1997.9,0.55]
[1742696404506,0.7653,1998.4,1997.9,0.55]
[1742696404739,4.24729973,1998.5,1998.1,5.00452]
[1742696404944,4.24729973,1998.5,1998.2,26.466]
[1742696405240,4.24729973,1998.4,1998.2,26.466]
[1742696407235,4.24729973,1998.4,1998.2,31.47043]
[1742696408339,5.76885,1998.6,1998.2,26.466]
[1742696408340,4.24729973,1998.5,1998.2,26.466]
[1742696408530,4.24729973,1998.5,1998.2,31.4704]
[1742696410553,5.0019,1999.3,1998.3,4.84733663]
[1742696410727,5.0019,1999.3,1998.7,5.00302]
[1742696410728,4.24729973,1999.3,1998.7,5.00302]
[1742696410932,9.24917973,1999.3,1998.8,5.00297]
[1742696411342,14.25114973,1999.3,1998.8,5.00297]
[1742696411717,4.24729973,1999.1,1998.7,10.00614]
[1742696411917,5.01259973,1999.1,1998.7,5.00302]
[1742696412650,5.01259973,1999.1,1998.8,5.00287]
[1742696412974,4.24729973,1999.1,1998.9,5.0027]